[Event "Live Chess"]
[Site "Chess.com"]
[Date "2023.05.21"]
[Round "-"]
[White "MartynColebrook"]
[Black "LL220284LL"]
[Result "0-1"]
[WhiteElo "967"]
[BlackElo "2295"]
[TimeControl "300"]
[EndTime "5:25:32 PDT"]
[Termination "LL220284LL won by checkmate"]

1. e4 {[%clk 0:04:53.6]} 1... d5 {[%clk 0:04:59.1]} 2. exd5 {[%clk 0:04:50.3]}
2... Qxd5 {[%clk 0:04:59]} 3. Nf3 {[%clk 0:04:48.8]} 3... Nf6 {[%clk 0:04:57.6]}
4. Nc3 {[%clk 0:04:46.8]} 4... Qa5 {[%clk 0:04:56.4]} 5. Bc4 {[%clk 0:04:44.6]}
5... Bg4 {[%clk 0:04:54.9]} 6. d4 {[%clk 0:04:41.6]} 6... c6 {[%clk 0:04:53.2]}
7. Bd2 {[%clk 0:04:35.3]} 7... Qc7 {[%clk 0:04:52.2]} 8. Qe2 {[%clk 0:04:31.6]}
8... Nbd7 {[%clk 0:04:51.4]} 9. O-O-O {[%clk 0:04:26.1]} 9... e6 {[%clk
0:04:50.8]} 10. Qd3 {[%clk 0:04:21.6]} 10... Bd6 {[%clk 0:04:48.2]} 11. Rhe1
{[%clk 0:04:17.5]} 11... O-O {[%clk 0:04:44.9]} 12. h3 {[%clk 0:04:06.1]} 12...
Bf5 {[%clk 0:04:43.8]} 13. Qe3 {[%clk 0:03:57.4]} 13... b5 {[%clk 0:04:42.5]}
14. Bb3 {[%clk 0:03:51.5]} 14... b4 {[%clk 0:04:40.9]} 15. Ne2 {[%clk
0:03:45.9]} 15... Nd5 {[%clk 0:04:38.4]} 16. Bxd5 {[%clk 0:03:31.5]} 16... cxd5
{[%clk 0:04:37.3]} 17. Nf4 {[%clk 0:03:23.1]} 17... Qxc2# {[%clk 0:04:35.9]} 0-1

[Event "Live Chess"]
[Site "Chess.com"]
[Date "2023.05.21"]
[Round "-"]
[White "jumush"]
[Black "JoshMcK"]
[Result "0-1"]
[WhiteElo "1741"]
[BlackElo "1573"]
[TimeControl "300"]
[EndTime "5:25:34 PDT"]
[Termination "JoshMcK won by resignation"]

1. e4 {[%clk 0:04:57]} 1... c6 {[%clk 0:04:57.5]} 2. d4 {[%clk 0:04:55.5]} 2...
d5 {[%clk 0:04:56.5]} 3. exd5 {[%clk 0:04:54.1]} 3... cxd5 {[%clk 0:04:54.8]} 4.
Nf3 {[%clk 0:04:52.7]} 4... Nf6 {[%clk 0:04:52.8]} 5. Ne5 {[%clk 0:04:49.3]}
5... Nc6 {[%clk 0:04:49.7]} 6. Bb5 {[%clk 0:04:44.8]} 6... a6 {[%clk 0:04:44.9]}
7. Nxc6 {[%clk 0:04:37.3]} 7... bxc6 {[%clk 0:04:40.2]} 8. Bd3 {[%clk
0:04:35.6]} 8... e6 {[%clk 0:04:34]} 9. c4 {[%clk 0:04:29.7]} 9... Be7 {[%clk
0:04:31.5]} 10. O-O {[%clk 0:04:27.1]} 10... O-O {[%clk 0:04:29.6]} 11. Nc3
{[%clk 0:04:25]} 11... Qc7 {[%clk 0:04:26.4]} 12. Be3 {[%clk 0:04:18.3]} 12...
e5 {[%clk 0:04:21.7]} 13. c5 {[%clk 0:04:15.6]} 13... exd4 {[%clk 0:04:18.5]}
14. Bxd4 {[%clk 0:04:13.4]} 14... Ng4 {[%clk 0:04:14.9]} 15. g3 {[%clk
0:04:08.1]} 15... Nf6 {[%clk 0:04:12.4]} 16. Re1 {[%clk 0:04:01.8]} 16... Bd8
{[%clk 0:03:57.2]} 17. Qd2 {[%clk 0:03:58.1]} 17... Bh3 {[%clk 0:03:49.5]} 18.
f3 {[%clk 0:03:55.4]} 18... Nh5 {[%clk 0:03:33.2]} 19. Qf2 {[%clk 0:03:51.9]}
19... Qc8 {[%clk 0:03:03.6]} 20. Re2 {[%clk 0:03:49.1]} 20... Nf6 {[%clk
0:02:55.4]} 21. Rae1 {[%clk 0:03:46.2]} 21... Bc7 {[%clk 0:02:46.2]} 22. Bxf6
{[%clk 0:03:37.7]} 22... gxf6 {[%clk 0:02:42.5]} 23. Qd4 {[%clk 0:03:35.9]}
23... Be5 {[%clk 0:02:38.1]} 24. Qh4 {[%clk 0:03:30.5]} 24... Bf5 {[%clk
0:02:30]} 25. Bxf5 {[%clk 0:03:23.7]} 25... Qxf5 {[%clk 0:02:28.2]} 26. Kg2
{[%clk 0:02:59.5]} 26... Qg6 {[%clk 0:02:16.2]} 27. f4 {[%clk 0:02:49.3]} 27...
Bxc3 {[%clk 0:02:13.7]} 28. bxc3 {[%clk 0:02:44.4]} 28... Rab8 {[%clk
0:02:10.7]} 29. Rf1 {[%clk 0:02:25.7]} 29... Rb5 {[%clk 0:02:02.4]} 30. f5
{[%clk 0:02:23.7]} 30... Qg5 {[%clk 0:01:55.7]} 31. Qd4 {[%clk 0:02:21.5]} 31...
Rfb8 {[%clk 0:01:46.1]} 32. Rf4 {[%clk 0:02:19.6]} 32... Kf8 {[%clk 0:01:43]}
33. Qe3 {[%clk 0:02:06.7]} 33... Rb2 {[%clk 0:01:29.1]} 34. Qe7+ {[%clk
0:01:57.6]} 34... Kg8 {[%clk 0:01:23.5]} 35. h3 {[%clk 0:01:54]} 35... Rxe2+
{[%clk 0:01:16.5]} 36. Qxe2 {[%clk 0:01:52]} 36... Kh8 {[%clk 0:01:13]} 37. Qxa6
{[%clk 0:01:43.9]} 37... Rg8 {[%clk 0:01:04.6]} 38. Qd3 {[%clk 0:01:34.3]} 38...
Qxf4 {[%clk 0:01:00.6]} 0-1

[Event "Live Chess"]
[Site "Chess.com"]
[Date "2023.05.21"]
[Round "-"]
[White "LiamBellwood"]
[Black "BJAW87"]
[Result "1-0"]
[WhiteElo "1914"]
[BlackElo "1449"]
[TimeControl "300"]
[EndTime "5:25:39 PDT"]
[Termination "LiamBellwood won by checkmate"]

1. d4 {[%clk 0:04:59.4]} 1... Nf6 {[%clk 0:04:59.2]} 2. Nc3 {[%clk 0:04:59.3]}
2... g6 {[%clk 0:04:58.6]} 3. Bf4 {[%clk 0:04:58.9]} 3... Bg7 {[%clk 0:04:58.2]}
4. e4 {[%clk 0:04:58.6]} 4... O-O {[%clk 0:04:57.6]} 5. Qd2 {[%clk 0:04:57.8]}
5... Re8 {[%clk 0:04:56.2]} 6. Bh6 {[%clk 0:04:55.2]} 6... Bh8 {[%clk
0:04:55.7]} 7. h4 {[%clk 0:04:54]} 7... d6 {[%clk 0:04:55]} 8. h5 {[%clk
0:04:53.2]} 8... Nxh5 {[%clk 0:04:47.1]} 9. Rxh5 {[%clk 0:04:51.2]} 9... gxh5
{[%clk 0:04:46.4]} 10. Qg5+ {[%clk 0:04:50.5]} 10... Bg7 {[%clk 0:04:38.7]} 11.
Qxg7# {[%clk 0:04:50.4]} 1-0

[Event "Live Chess"]
[Site "Chess.com"]
[Date "2023.05.21"]
[Round "-"]
[White "defenderalist"]
[Black "Vitalii18a"]
[Result "1-0"]
[WhiteElo "1642"]
[BlackElo "1135"]
[TimeControl "300"]
[EndTime "5:25:59 PDT"]
[Termination "defenderalist won on time"]

1. e4 {[%clk 0:04:58.6]} 1... e5 {[%clk 0:04:58.7]} 2. Nf3 {[%clk 0:04:58]} 2...
d6 {[%clk 0:04:57.5]} 3. Bc4 {[%clk 0:04:57.3]} 3... Be7 {[%clk 0:04:55.4]} 4.
Nc3 {[%clk 0:04:56.4]} 4... Nd7 {[%clk 0:04:53.3]} 5. h3 {[%clk 0:04:55.8]} 5...
Nb6 {[%clk 0:04:51.7]} 6. Bb3 {[%clk 0:04:54.4]} 6... Nf6 {[%clk 0:04:50.5]} 7.
d3 {[%clk 0:04:52.7]} 7... Be6 {[%clk 0:04:48.1]} 8. O-O {[%clk 0:04:47.7]} 8...
O-O {[%clk 0:04:45]} 9. Bg5 {[%clk 0:04:43.4]} 9... h6 {[%clk 0:04:42.2]} 10.
Bh4 {[%clk 0:04:42.4]} 10... g5 {[%clk 0:04:38.1]} 11. Bg3 {[%clk 0:04:39.5]}
11... Qd7 {[%clk 0:04:34.3]} 12. Bxe6 {[%clk 0:04:33.3]} 12... fxe6 {[%clk
0:04:30.5]} 13. Ne2 {[%clk 0:04:28.8]} 13... Nh5 {[%clk 0:04:28.7]} 14. c3
{[%clk 0:04:25.5]} 14... Nf4 {[%clk 0:04:18.9]} 15. d4 {[%clk 0:04:12.1]} 15...
exd4 {[%clk 0:04:09.6]} 16. cxd4 {[%clk 0:04:08.6]} 16... Qe8 {[%clk 0:04:06.7]}
17. Qd2 {[%clk 0:03:53.2]} 17... Qh5 {[%clk 0:04:03.9]} 18. Bxf4 {[%clk
0:03:44.6]} 18... gxf4 {[%clk 0:03:57.9]} 19. Nxf4 {[%clk 0:03:44]} 19... Qf7
{[%clk 0:03:50.7]} 20. Ne2 {[%clk 0:03:31.4]} 20... Nc4 {[%clk 0:03:47.5]} 21.
Qxh6 {[%clk 0:03:23.2]} 21... Qg7 {[%clk 0:03:30.3]} 22. Qxg7+ {[%clk
0:03:14.9]} 22... Kxg7 {[%clk 0:03:29]} 23. b3 {[%clk 0:03:09.3]} 23... Na3
{[%clk 0:03:21.7]} 24. Rac1 {[%clk 0:03:06.5]} 24... c5 {[%clk 0:03:17.1]} 25.
dxc5 {[%clk 0:03:05.3]} 25... dxc5 {[%clk 0:03:16.1]} 26. e5 {[%clk 0:02:49.9]}
26... b6 {[%clk 0:03:12.3]} 27. Ng3 {[%clk 0:02:48]} 27... a5 {[%clk 0:03:04.5]}
28. Ne4 {[%clk 0:02:46.2]} 28... a4 {[%clk 0:02:55.4]} 29. Rfd1 {[%clk
0:02:44.1]} 29... axb3 {[%clk 0:02:45.9]} 30. axb3 {[%clk 0:02:43.1]} 30... Rfd8
{[%clk 0:02:25.3]} 31. Nd6 {[%clk 0:02:31.8]} 31... Kg6 {[%clk 0:01:59.1]} 32.
Nh2 {[%clk 0:02:18.7]} 32... Bg5 {[%clk 0:01:38.5]} 33. Rc3 {[%clk 0:02:05.5]}
33... Bf4 {[%clk 0:01:35.7]} 34. Ng4 {[%clk 0:01:54]} 34... Nb5 {[%clk
0:01:19.5]} 35. Rcd3 {[%clk 0:01:46.3]} 35... Nd4 {[%clk 0:00:53.1]} 36. Nc4
{[%clk 0:01:35.3]} 36... b5 {[%clk 0:00:45.8]} 37. Nd2 {[%clk 0:01:19]} 37... c4
{[%clk 0:00:36.3]} 38. bxc4 {[%clk 0:01:15.2]} 38... bxc4 {[%clk 0:00:27.3]} 39.
Nxc4 {[%clk 0:01:12.8]} 39... Ra2 {[%clk 0:00:18]} 40. Rxd4 {[%clk 0:01:08.2]}
40... Rxd4 {[%clk 0:00:12.2]} 41. Nge3 {[%clk 0:00:48]} 41... Bxe3 {[%clk
0:00:05.3]} 42. Nxe3 {[%clk 0:00:45]} 42... Rxd1+ {[%clk 0:00:03.3]} 43. Nxd1
{[%clk 0:00:43.5]} 43... Ra1 {[%clk 0:00:02.5]} 44. Kh2 {[%clk 0:00:42.3]} 44...
Rxd1 {[%clk 0:00:02.4]} 45. Kg3 {[%clk 0:00:41.2]} 45... Kf5 {[%clk 0:00:02.2]}
46. f3 {[%clk 0:00:40.6]} 46... Kxe5 {[%clk 0:00:01.8]} 47. Kf2 {[%clk
0:00:39.9]} 47... Rd2+ {[%clk 0:00:00.9]} 48. Kg3 {[%clk 0:00:39]} 1-0

[Event "Live Chess"]
[Site "Chess.com"]
[Date "2023.05.21"]
[Round "-"]
[White "seasidecastle27"]
[Black "Biranidun"]
[Result "0-1"]
[WhiteElo "1890"]
[BlackElo "2523"]
[TimeControl "300"]
[EndTime "5:25:59 PDT"]
[Termination "Biranidun won by resignation"]

1. d4 {[%clk 0:04:58.1]} 1... Nf6 {[%clk 0:04:59]} 2. Nf3 {[%clk 0:04:55.8]}
2... g6 {[%clk 0:04:58.5]} 3. Bf4 {[%clk 0:04:54.2]} 3... Bg7 {[%clk 0:04:58]}
4. e3 {[%clk 0:04:53.3]} 4... O-O {[%clk 0:04:57.5]} 5. Bd3 {[%clk 0:04:51]}
5... d6 {[%clk 0:04:57]} 6. Nbd2 {[%clk 0:04:50.1]} 6... b6 {[%clk 0:04:56.3]}
7. h3 {[%clk 0:04:48.3]} 7... Bb7 {[%clk 0:04:55.8]} 8. Qe2 {[%clk 0:04:46.7]}
8... a6 {[%clk 0:04:54.7]} 9. O-O {[%clk 0:04:43.9]} 9... Nbd7 {[%clk
0:04:54.3]} 10. e4 {[%clk 0:04:41.6]} 10... Re8 {[%clk 0:04:53.1]} 11. e5 {[%clk
0:04:39]} 11... Nd5 {[%clk 0:04:50.3]} 12. Bg5 {[%clk 0:04:33.7]} 12... h6
{[%clk 0:04:47.2]} 13. Bh4 {[%clk 0:04:31]} 13... dxe5 {[%clk 0:04:45.7]} 14.
dxe5 {[%clk 0:04:28.3]} 14... Nf4 {[%clk 0:04:43.6]} 15. Qe3 {[%clk 0:04:22.5]}
15... Nxd3 {[%clk 0:04:42.9]} 16. cxd3 {[%clk 0:04:19.8]} 16... Nc5 {[%clk
0:04:38]} 17. d4 {[%clk 0:04:17]} 17... Ne6 {[%clk 0:04:36.9]} 18. Rad1 {[%clk
0:04:07.8]} 18... Bd5 {[%clk 0:04:34.2]} 19. b3 {[%clk 0:04:05.4]} 19... a5
{[%clk 0:04:32.6]} 20. Ne4 {[%clk 0:03:55.8]} 20... a4 {[%clk 0:04:29.2]} 21.
Nc3 {[%clk 0:03:51.8]} 21... axb3 {[%clk 0:04:28.1]} 22. Nxd5 {[%clk 0:03:50.3]}
22... Qxd5 {[%clk 0:04:27.1]} 23. axb3 {[%clk 0:03:45.8]} 23... Ra3 {[%clk
0:04:25.8]} 24. Rb1 {[%clk 0:03:39.6]} 24... g5 {[%clk 0:04:13.4]} 25. Bg3
{[%clk 0:03:37.2]} 25... Rd8 {[%clk 0:04:12.9]} 26. Rfd1 {[%clk 0:03:31.5]}
26... c5 {[%clk 0:04:11.9]} 27. dxc5 {[%clk 0:03:23.6]} 27... Qxd1+ {[%clk
0:04:11.8]} 28. Rxd1 {[%clk 0:03:21.9]} 28... Rxd1+ {[%clk 0:04:11.7]} 29. Kh2
{[%clk 0:03:20.6]} 29... Raa1 {[%clk 0:04:11.2]} 30. Bh4 {[%clk 0:03:05.4]}
30... gxh4 {[%clk 0:04:08.7]} 31. g4 {[%clk 0:03:02.5]} 31... hxg3+ {[%clk
0:04:03.8]} 32. Kxg3 {[%clk 0:03:00.3]} 32... bxc5 {[%clk 0:04:02.5]} 33. Nh4
{[%clk 0:02:53.6]} 33... Nd4 {[%clk 0:03:57.8]} 34. b4 {[%clk 0:02:41.2]} 34...
Re1 {[%clk 0:03:53.6]} 35. Qc3 {[%clk 0:02:37]} 35... Ne2+ {[%clk 0:03:51.6]}
0-1

[Event "Live Chess"]
[Site "Chess.com"]
[Date "2023.05.21"]
[Round "-"]
[White "KeithArkell"]
[Black "Crowded_House"]
[Result "1-0"]
[WhiteElo "2479"]
[BlackElo "1605"]
[TimeControl "300"]
[EndTime "5:26:21 PDT"]
[Termination "KeithArkell won by resignation"]

1. d4 {[%clk 0:04:58.7]} 1... d5 {[%clk 0:04:55.4]} 2. Nf3 {[%clk 0:04:57.8]}
2... c6 {[%clk 0:04:52.7]} 3. c4 {[%clk 0:04:56.9]} 3... e6 {[%clk 0:04:51.1]}
4. cxd5 {[%clk 0:04:55.7]} 4... exd5 {[%clk 0:04:49.6]} 5. Nc3 {[%clk
0:04:54.8]} 5... Bd6 {[%clk 0:04:47.8]} 6. Qc2 {[%clk 0:04:52.3]} 6... Nd7
{[%clk 0:04:46.3]} 7. Bg5 {[%clk 0:04:50]} 7... Be7 {[%clk 0:04:43.4]} 8. Bxe7
{[%clk 0:04:48.2]} 8... Nxe7 {[%clk 0:04:41.5]} 9. e3 {[%clk 0:04:47.6]} 9...
O-O {[%clk 0:04:36.2]} 10. Bd3 {[%clk 0:04:46.7]} 10... Ng6 {[%clk 0:04:34.4]}
11. O-O {[%clk 0:04:44.9]} 11... Nf6 {[%clk 0:04:32.4]} 12. Ne5 {[%clk 0:04:41]}
12... Re8 {[%clk 0:04:25.1]} 13. Nxg6 {[%clk 0:04:39.8]} 13... fxg6 {[%clk
0:04:21.9]} 14. b4 {[%clk 0:04:38.7]} 14... Bd7 {[%clk 0:04:15.1]} 15. Rab1
{[%clk 0:04:25.9]} 15... Qc7 {[%clk 0:04:13.8]} 16. Rfc1 {[%clk 0:04:23.8]}
16... Ng4 {[%clk 0:04:10.6]} 17. g3 {[%clk 0:04:22.2]} 17... Rf8 {[%clk
0:04:01.9]} 18. Rf1 {[%clk 0:04:16.4]} 18... Rf3 {[%clk 0:03:55.6]} 19. Nxd5
{[%clk 0:04:14.9]} 19... Qd6 {[%clk 0:03:45.7]} 20. Nf4 {[%clk 0:04:12.9]} 20...
g5 {[%clk 0:03:24.6]} 21. Bxh7+ {[%clk 0:04:09.3]} 21... Kh8 {[%clk 0:03:23.6]}
22. Be4 {[%clk 0:04:03.1]} 22... gxf4 {[%clk 0:03:22.9]} 23. Bxf3 {[%clk
0:04:01.9]} 23... fxg3 {[%clk 0:03:21.4]} 24. hxg3 {[%clk 0:03:59.9]} 24... Qh6
{[%clk 0:03:12.8]} 25. Bxg4 {[%clk 0:03:56.1]} 25... Bxg4 {[%clk 0:03:10.8]} 26.
Qe4 {[%clk 0:03:52.7]} 26... Qh5 {[%clk 0:03:00.1]} 27. Qh1 {[%clk 0:03:45.9]}
27... g6 {[%clk 0:02:51.2]} 28. Qxh5+ {[%clk 0:03:43.9]} 28... gxh5 {[%clk
0:02:50.8]} 29. Kg2 {[%clk 0:03:42.8]} 29... Rf8 {[%clk 0:02:48.1]} 30. f3
{[%clk 0:03:41.1]} 30... Be6 {[%clk 0:02:42.3]} 31. Rh1 {[%clk 0:03:36.9]} 31...
Bf7 {[%clk 0:02:37.8]} 32. a4 {[%clk 0:03:35.9]} 32... Kg7 {[%clk 0:02:36.3]}
33. b5 {[%clk 0:03:35.3]} 33... cxb5 {[%clk 0:02:33.1]} 34. Rxb5 {[%clk
0:03:33.3]} 34... b6 {[%clk 0:02:31.8]} 35. a5 {[%clk 0:03:32.8]} 35... bxa5
{[%clk 0:02:30]} 36. Rxa5 {[%clk 0:03:32.1]} 36... Ra8 {[%clk 0:02:22.8]} 37.
Rha1 {[%clk 0:03:30.9]} 37... a6 {[%clk 0:02:13.4]} 38. Rxa6 {[%clk 0:03:28.6]}
38... Rxa6 {[%clk 0:02:13.1]} 39. Rxa6 {[%clk 0:03:26.7]} 39... Bg6 {[%clk
0:02:12.3]} 40. Rxg6+ {[%clk 0:03:25.2]} 40... Kxg6 {[%clk 0:02:11.5]} 41. Kh3
{[%clk 0:03:24.3]} 41... Kg5 {[%clk 0:02:10.4]} 42. e4 {[%clk 0:03:23.7]} 42...
Kf6 {[%clk 0:02:09.2]} 43. Kh4 {[%clk 0:03:22.9]} 43... Kg6 {[%clk 0:02:08.8]}
44. d5 {[%clk 0:03:21.7]} 44... Kh6 {[%clk 0:02:06.8]} 45. d6 {[%clk 0:03:20.4]}
45... Kg6 {[%clk 0:02:06.5]} 46. d7 {[%clk 0:03:19.8]} 1-0

[Event "Live Chess"]
[Site "Chess.com"]
[Date "2023.05.21"]
[Round "-"]
[White "Doge_Dandolo"]
[Black "ChessTWSS"]
[Result "1-0"]
[WhiteElo "1910"]
[BlackElo "1605"]
[TimeControl "300"]
[EndTime "5:26:23 PDT"]
[Termination "Doge_Dandolo won by checkmate"]

1. Nf3 {[%clk 0:04:58.5]} 1... c5 {[%clk 0:04:52.8]} 2. c4 {[%clk 0:04:57.8]}
2... Nc6 {[%clk 0:04:48.2]} 3. d4 {[%clk 0:04:56]} 3... cxd4 {[%clk 0:04:43.7]}
4. Nxd4 {[%clk 0:04:48.5]} 4... e6 {[%clk 0:04:33.1]} 5. g3 {[%clk 0:04:46.5]}
5... Nf6 {[%clk 0:04:28.3]} 6. Bg2 {[%clk 0:04:42]} 6... Bc5 {[%clk 0:04:23.7]}
7. Nb3 {[%clk 0:04:39.9]} 7... Bb4+ {[%clk 0:04:17.7]} 8. Nc3 {[%clk 0:04:36.6]}
8... O-O {[%clk 0:04:12.4]} 9. O-O {[%clk 0:04:34.9]} 9... Bxc3 {[%clk
0:04:06.6]} 10. bxc3 {[%clk 0:04:33.4]} 10... a6 {[%clk 0:03:57.8]} 11. c5
{[%clk 0:04:32.1]} 11... d5 {[%clk 0:03:45.3]} 12. cxd6 {[%clk 0:04:26.7]} 12...
Qd7 {[%clk 0:03:38.6]} 13. c4 {[%clk 0:04:23.1]} 13... Rd8 {[%clk 0:03:33.9]}
14. c5 {[%clk 0:04:21.3]} 14... b6 {[%clk 0:03:22.6]} 15. Bf4 {[%clk 0:04:12]}
15... b5 {[%clk 0:03:10.9]} 16. Qc2 {[%clk 0:04:03.8]} 16... a5 {[%clk
0:03:01.8]} 17. Rfd1 {[%clk 0:03:59.5]} 17... a4 {[%clk 0:02:57.1]} 18. Nd4
{[%clk 0:03:55.6]} 18... Nd5 {[%clk 0:02:50.6]} 19. Nxb5 {[%clk 0:03:39.5]}
19... Ra5 {[%clk 0:02:41.3]} 20. Nc3 {[%clk 0:03:19.5]} 20... Rxc5 {[%clk
0:02:34]} 21. Bxd5 {[%clk 0:03:08.5]} 21... Nb4 {[%clk 0:02:28.1]} 22. Qd2
{[%clk 0:02:54]} 22... exd5 {[%clk 0:02:15.9]} 23. a3 {[%clk 0:02:47.1]} 23...
d4 {[%clk 0:01:43.1]} 24. Ne4 {[%clk 0:02:28.7]} 24... Na6 {[%clk 0:01:17.6]}
25. Nxc5 {[%clk 0:02:22.2]} 25... Nxc5 {[%clk 0:01:17.5]} 26. Qxd4 {[%clk
0:02:18.7]} 26... Nb3 {[%clk 0:01:10.2]} 27. Qc4 {[%clk 0:02:03.8]} 27... Nxa1
{[%clk 0:01:06.8]} 28. Rxa1 {[%clk 0:02:01.2]} 28... Qe6 {[%clk 0:01:00.5]} 29.
Qc7 {[%clk 0:01:56.9]} 29... Qd7 {[%clk 0:00:46.2]} 30. Rc1 {[%clk 0:01:49.7]}
30... Qxc7 {[%clk 0:00:41.7]} 31. dxc7 {[%clk 0:01:46.9]} 31... Rd7 {[%clk
0:00:37.1]} 32. f3 {[%clk 0:01:42.2]} 32... Rd2 {[%clk 0:00:19.6]} 33. Kf2
{[%clk 0:01:35.7]} 33... Ra2 {[%clk 0:00:16.5]} 34. Bd6 {[%clk 0:01:33.2]} 34...
Rb2 {[%clk 0:00:13.8]} 35. Rc4 {[%clk 0:01:27]} 35... h5 {[%clk 0:00:10.8]} 36.
Rxa4 {[%clk 0:01:22.2]} 36... g5 {[%clk 0:00:08.6]} 37. Ra8 {[%clk 0:01:20.3]}
37... f5 {[%clk 0:00:06.2]} 38. Rxc8+ {[%clk 0:01:18.9]} 38... Kf7 {[%clk
0:00:05.5]} 39. Rf8+ {[%clk 0:01:17.6]} 39... Ke6 {[%clk 0:00:03.8]} 40. c8=Q+
{[%clk 0:01:16.2]} 40... Kxd6 {[%clk 0:00:02.4]} 41. Rf6+ {[%clk 0:01:13.9]}
41... Ke5 {[%clk 0:00:01.7]} 42. Qe6+ {[%clk 0:01:12.1]} 42... Kd4 {[%clk
0:00:00.9]} 43. Qd6+ {[%clk 0:01:06.7]} 43... Kc3 {[%clk 0:00:00.8]} 44. Qd3#
{[%clk 0:01:05]} 1-0

[Event "Live Chess"]
[Site "Chess.com"]
[Date "2023.05.21"]
[Round "-"]
[White "AMCWAML"]
[Black "CrypticF1"]
[Result "1-0"]
[WhiteElo "2324"]
[BlackElo "446"]
[TimeControl "300"]
[EndTime "5:26:36 PDT"]
[Termination "AMCWAML won by checkmate"]

1. e4 {[%clk 0:04:58.3]} 1... c5 {[%clk 0:04:59]} 2. Nf3 {[%clk 0:04:57.7]} 2...
Nc6 {[%clk 0:04:58.5]} 3. d4 {[%clk 0:04:56.1]} 3... cxd4 {[%clk 0:04:57.4]} 4.
Nxd4 {[%clk 0:04:56]} 4... Nxd4 {[%clk 0:04:56.5]} 5. Qxd4 {[%clk 0:04:55.7]}
5... Nf6 {[%clk 0:04:54.4]} 6. Nc3 {[%clk 0:04:54.9]} 6... d6 {[%clk 0:04:45.9]}
7. Bc4 {[%clk 0:04:51.8]} 7... Be6 {[%clk 0:04:41.1]} 8. Bxe6 {[%clk 0:04:44.3]}
8... fxe6 {[%clk 0:04:41]} 9. e5 {[%clk 0:04:42.8]} 9... dxe5 {[%clk 0:04:38]}
10. Qxe5 {[%clk 0:04:37.3]} 10... Qd7 {[%clk 0:04:29.7]} 11. O-O {[%clk
0:04:32]} 11... O-O-O {[%clk 0:04:28.3]} 12. Nb5 {[%clk 0:04:28.2]} 12... Nd5
{[%clk 0:04:10.1]} 13. Nxa7# {[%clk 0:04:26.1]} 1-0